bitfinex-derivatives/quotes_BTCF0:USTF0_20241015
["timestamp","ask_amount","ask_price","bid_price","bid_amount"]
[1729030464221,0.245083,66596.0,66595.0,0.075084]
[1729030465222,0.246083,66596.0,66595.0,0.075084]
[1729030465824,0.247083,66596.0,66595.0,0.075084]
[1729030467612,0.172,66596.0,66595.0,0.075084]
[1729030468017,0.002,66596.0,66595.0,0.075084]
[1729030468817,0.002,66596.0,66595.0,0.067084]
[1729030470715,0.172,66596.0,66595.0,0.067084]
[1729030479235,0.247083,66596.0,66595.0,0.067084]
[1729030484231,0.075086,66593.0,66592.0,0.042]
[1729030484434,0.075087,66592.0,66591.0,0.01503]
[1729030484744,0.075087,66592.0,66591.0,0.090118]
[1729030484745,0.245087,66592.0,66591.0,0.090118]
[1729030485435,0.245087,66592.0,66591.0,0.082118]
[1729030485832,0.246087,66592.0,66591.0,0.082118]
[1729030487337,0.001,66592.0,66591.0,0.082118]
[1729030487732,0.002,66592.0,66591.0,0.082118]
[1729030491241,0.002,66592.0,66591.0,0.442918]
[1729030491446,0.3608,66602.0,66601.0,0.075077]
[1729030492041,0.3616,66610.0,66609.0,0.075068]
[1729030492359,0.075067,66610.0,66609.0,0.075068]
[1729030493351,0.076067,66610.0,66609.0,0.075068]
[1729030494147,0.001,66610.0,66609.0,0.075068]
[1729030494653,0.008,66610.0,66609.0,0.075068]
[1729030496272,0.0370067,66610.0,66609.0,0.075068]
[1729030496950,0.008,66610.0,66609.0,0.075068]
[1729030497340,0.008,66610.0,66609.0,0.08208483]
[1729030500355,0.008,66610.0,66609.0,0.07408483]
[1729030502944,0.083067,66610.0,66609.0,0.067068]
[1729030504253,0.083067,66610.0,66607.0,0.00702378]
[1729030504562,0.245069,66608.0,66607.0,0.07507]
[1729030505057,0.245069,66608.0,66604.0,0.075073]
[1729030505058,0.075075,66605.0,66604.0,0.075073]
[1729030505355,0.245075,66605.0,66604.0,0.075073]
[1729030505947,0.005,66608.0,66604.0,0.075073]
[1729030506152,0.005,66608.0,66607.0,0.07507]
[1729030507150,0.175,66608.0,66607.0,0.07507]
[1729030507451,0.250069,66608.0,66607.0,0.07507]
[1729030507654,0.245069,66608.0,66607.0,0.07507]
[1729030508350,0.250069,66608.0,66607.0,0.07507]
[1729030509151,0.080069,66608.0,66607.0,0.07507]
[1729030509459,0.250069,66608.0,66607.0,0.07507]
[1729030510358,0.250069,66608.0,66601.0,0.075074]
[1729030510359,0.075077,66602.0,66601.0,0.075074]
[1729030511462,0.075077,66602.0,66601.0,0.076074]
[1729030511463,0.076077,66602.0,66601.0,0.076074]
[1729030511852,0.15895287,66602.0,66601.0,0.076074]
[1729030512359,0.29380417,66602.0,66601.0,0.076074]
[1729030512564,0.15895287,66602.0,66601.0,0.076074]
[1729030514951,0.30878183,66602.0,66601.0,0.076074]
[1729030515253,0.15895287,66602.0,66601.0,0.076074]
[1729030515756,0.15895287,66602.0,66601.0,0.068074]
[1729030516970,0.08387587,66602.0,66601.0,0.068074]
[1729030518050,0.001,66602.0,66601.0,0.068074]
[1729030518264,0.23383903,66602.0,66601.0,0.068074]
[1729030518864,0.001,66602.0,66601.0,0.068074]
[1729030520255,0.076076,66602.0,66601.0,0.068074]
[1729030521662,0.001,66602.0,66601.0,0.068074]
[1729030523863,0.0008,66607.0,66606.0,0.075072]
[1729030524065,0.02900795,66607.0,66606.0,0.245072]
[1729030524258,0.075064,66613.0,66612.0,0.075065]
[1729030524458,0.1040712,66613.0,66612.0,0.075065]
[1729030524855,0.0290072,66613.0,66612.0,0.075065]
[1729030525460,0.30498958,66625.0,66612.0,0.075065]
[1729030525461,0.3608,66628.0,66613.0,0.075064]
[1729030525661,0.10405047,66627.0,66626.0,0.075048]
[1729030525865,0.02900247,66627.0,66626.0,0.075048]
[1729030526365,0.075046,66629.0,66625.0,0.2111]
[1729030526552,0.075046,66629.0,66628.0,0.075047]
[1729030526759,0.10404501,66629.0,66628.0,0.075047]
[1729030526961,0.02899901,66629.0,66628.0,0.075047]
[1729030527163,0.3608,66635.0,66634.0,0.07504]
[1729030527461,0.3608,66635.0,66634.0,0.24504]
[1729030528260,0.3618,66635.0,66634.0,0.24604]
[1729030528768,0.3628,66635.0,66634.0,0.24704]
[1729030529158,0.3618,66635.0,66634.0,0.07604]
[1729030529354,0.3628,66635.0,66634.0,0.07704]
[1729030531163,0.3628,66635.0,66634.0,0.06904]
[1729030531363,0.002,66635.0,66634.0,0.06904]
[1729030531564,0.00225155,66642.0,66641.0,0.075032]
[1729030532865,0.07728255,66642.0,66641.0,0.075032]
[1729030533971,0.07728255,66642.0,66641.0,0.05906604]
[1729030533972,0.18910284,66642.0,66641.0,0.05906604]
[1729030534665,0.33824239,66642.0,66641.0,0.05906604]
[1729030534969,0.18910284,66642.0,66641.0,0.05906604]
[1729030536673,0.18910284,66642.0,66641.0,0.06612688]
[1729030536973,0.18910107,66642.0,66641.0,0.06612688]
[1729030537367,0.32322261,66642.0,66641.0,0.06612688]
[1729030537566,0.18910107,66642.0,66641.0,0.06612688]
[1729030537869,0.32322322,66642.0,66641.0,0.06612688]
[1729030538455,0.18910107,66642.0,66641.0,0.05906604]
[1729030540467,0.14303074,66642.0,66641.0,0.001]
[1729030540765,0.18910267,66642.0,66641.0,0.076032]
[1729030540967,0.18910198,66642.0,66641.0,0.076032]
[1729030541769,0.06574819,66642.0,66641.0,1.466192]
[1729030541969,0.52561447,66659.0,66643.0,0.075029]
[1729030542265,0.0022509,66661.0,66660.0,0.075011]
[1729030542571,0.0022509,66661.0,66660.0,0.245011]
[1729030543265,0.3608,66675.0,66674.0,0.074995]
[1729030544664,0.3608,66675.0,66665.0,0.17]
[1729030544873,0.3608,66675.0,66657.0,0.3608]
[1729030544874,0.17,66666.0,66657.0,0.3608]
[1729030545063,0.17,66666.0,66665.0,0.075005]
[1729030545265,0.075003,66667.0,66659.0,0.5711]
[1729030545464,0.075003,66667.0,66660.0,0.075011]
[1729030545665,0.075004,66666.0,66664.0,0.075005]
[1729030546473,0.3608,66667.0,66660.0,0.07501]
[1729030546663,0.075009,66662.0,66661.0,0.07501]
[1729030546863,0.075009,66662.0,66659.0,0.2103]
[1729030546864,0.3608,66667.0,66659.0,0.2113]
[1729030547078,0.075006,66664.0,66663.0,0.245006]
[1729030548570,0.075006,66664.0,66663.0,0.606806]
[1729030548977,0.10398754,66664.0,66663.0,0.606806]
[1729030549584,0.10398754,66664.0,66663.0,0.249006]
[1729030549776,0.02898154,66664.0,66663.0,0.249006]
[1729030550965,0.02898213,66664.0,66663.0,0.249007]
[1729030555882,0.02898212,66664.0,66663.0,0.249007]
[1729030557174,0.3608,66669.0,66668.0,0.075002]
[1729030558386,0.3638,66669.0,66668.0,0.075002]
[1729030558588,0.003,66669.0,66668.0,0.075002]
[1729030558784,0.078001,66669.0,66668.0,0.075002]
[1729030559786,0.080001,66669.0,66668.0,0.075002]
[1729030560979,0.075003,66667.0,66666.0,0.17]
[1729030561178,0.005,66669.0,66662.0,0.17]
[1729030561381,0.080001,66669.0,66668.0,0.075002]
[1729030562276,0.080001,66669.0,66668.0,0.067002]
[1729030562879,0.078001,66669.0,66668.0,0.067002]
[1729030563083,0.075001,66669.0,66668.0,0.067002]
[1729030563386,0.077001,66669.0,66668.0,0.067002]
[1729030563687,0.075001,66669.0,66668.0,0.067002]
[1729030563888,0.077001,66669.0,66668.0,0.067002]
[1729030564089,0.11677715,66669.0,66662.0,0.17]
[1729030564285,0.20944564,66664.0,66663.0,0.075007]
[1729030564479,0.18678515,66664.0,66663.0,0.075007]
[1729030565185,0.20948535,66664.0,66663.0,0.075007]
[1729030565499,0.18678515,66664.0,66663.0,0.075007]
[1729030565689,0.11177715,66664.0,66661.0,0.36763095]
[1729030565886,0.075008,66662.0,66661.0,0.00683095]
[1729030566213,0.075008,66662.0,66660.0,0.075011]
[1729030566214,0.07501,66661.0,66660.0,0.075011]
[1729030566381,0.29956117,66661.0,66660.0,0.075011]
[1729030566689,0.18679137,66661.0,66660.0,0.075011]
[1729030566884,0.18679137,66661.0,66657.0,0.17]
[1729030567183,0.075017,66654.0,66653.0,0.435818]
[1729030567385,0.20959652,66654.0,66653.0,0.605818]
[1729030567978,0.20959652,66654.0,66653.0,0.53761288]
[1729030568184,0.18679811,66654.0,66653.0,0.36761288]
[1729030568887,0.18679811,66654.0,66653.0,0.44263188]
[1729030569489,0.35161258,66654.0,66653.0,0.36761288]
[1729030569985,0.24662083,66654.0,66653.0,0.36761288]
[1729030570180,0.19279811,66654.0,66653.0,0.36761288]
[1729030570381,0.19279811,66654.0,66653.0,0.00681288]
[1729030570677,0.075021,66651.0,66650.0,0.075021]
[1729030571390,0.18680211,66651.0,66650.0,0.075021]
[1729030571888,0.24062483,66651.0,66650.0,0.075021]
[1729030572194,0.02898213,66651.0,66650.0,0.075021]
[1729030572583,0.02898829,66651.0,66650.0,0.002]
[1729030572886,0.10600929,66651.0,66650.0,0.077022]
[1729030573381,0.10600985,66651.0,66650.0,0.077022]
[1729030573691,0.10600985,66651.0,66650.0,0.002]
[1729030574994,0.10600985,66651.0,66650.0,0.077022]
[1729030576685,0.10600803,66651.0,66650.0,0.077022]
[1729030577692,0.10600803,66651.0,66650.0,0.069022]
[1729030578688,0.075022,66650.0,66649.0,0.17703]
[1729030578990,0.10400903,66650.0,66649.0,0.245023]
[1729030579190,0.075022,66650.0,66649.0,0.245023]
[1729030579388,0.18682692,66650.0,66649.0,0.245023]
[1729030579588,0.32156692,66650.0,66649.0,0.245023]
[1729030579790,0.32256692,66650.0,66649.0,0.245023]
[1729030579994,0.18782692,66650.0,66649.0,0.245023]
[1729030580191,0.33767073,66650.0,66649.0,0.248023]
[1729030580395,0.18782692,66650.0,66649.0,0.248023]
[1729030580599,0.33767073,66650.0,66649.0,0.248023]
[1729030581395,0.18782692,66650.0,66649.0,0.248023]
[1729030582790,0.18782692,66650.0,66649.0,0.173]
[1729030583091,0.18782692,66650.0,66649.0,0.003]
[1729030583798,0.18782692,66650.0,66645.0,0.53156]
[1729030583799,0.075027,66646.0,66645.0,0.00076]
[1729030584097,0.07503,66643.0,66642.0,0.07728065]
[1729030584285,0.07503,66643.0,66642.0,1.05933718]
[1729030584286,0.11181156,66643.0,66642.0,1.05933718]
[1729030584488,0.001,66650.0,66646.0,0.075027]
[1729030584688,0.001,66650.0,66649.0,0.245023]
[1729030586391,0.075013,66658.0,66649.0,0.17]
[1729030586697,0.075013,66658.0,66657.0,0.245014]
[1729030588803,0.076013,66658.0,66657.0,0.245014]
[1729030589302,0.075013,66658.0,66657.0,0.245014]
[1729030589901,0.435813,66658.0,66657.0,0.245014]
[1729030590986,0.435813,66658.0,66657.0,0.075014]
[1729030591892,0.075013,66658.0,66657.0,0.075014]
[1729030592093,0.435813,66658.0,66657.0,0.075014]
[1729030592996,0.435813,66658.0,66657.0,0.067014]
[1729030594603,0.46480111,66658.0,66657.0,0.067014]
[1729030594800,0.50155044,66658.0,66657.0,0.067014]
[1729030595403,0.54761366,66658.0,66657.0,0.067014]
[1729030596897,0.50155044,66658.0,66657.0,0.067014]
[1729030597294,0.50155153,66658.0,66657.0,0.067014]
[1729030600704,0.075005,66666.0,66657.0,0.067014]
[1729030600705,0.00225084,66668.0,66667.0,0.075003]
[1729030600903,0.00225084,66668.0,66667.0,0.245003]
[1729030601407,0.21996051,66668.0,66667.0,0.245003]
[1729030602201,0.19797406,66668.0,66667.0,0.245003]
[1729030602405,0.23471552,66668.0,66667.0,0.245003]
[1729030602703,0.23571552,66668.0,66667.0,0.245003]
[1729030603016,0.23546468,66668.0,66667.0,0.245003]
[1729030603198,0.08579439,66668.0,66667.0,1.295003]
[1729030603791,0.03974146,66668.0,66667.0,1.295003]
[1729030604105,0.03974146,66668.0,66667.0,1.30190908]
[1729030604499,0.03974146,66668.0,66667.0,0.70190908]
[1729030604698,0.03974146,66668.0,66667.0,1.30190908]
[1729030604896,0.03974146,66668.0,66667.0,0.70190908]
[1729030605099,0.03974146,66668.0,66667.0,0.25190908]
[1729030606301,0.11274346,66668.0,66667.0,0.08190908]
[1729030606499,0.11274346,66668.0,66667.0,0.25290908]
[1729030606700,0.11274141,66668.0,66667.0,0.25290908]
[1729030607594,0.03773941,66668.0,66667.0,0.25290908]
[1729030608700,0.03773941,66668.0,66667.0,0.24490908]
[1729030609104,0.001,66668.0,66667.0,0.24490908]
[1729030615205,0.001,66668.0,66667.0,1.29490908]
[1729030615407,0.00225009,66683.0,66680.0,0.074988]
[1729030615706,0.02897846,66682.0,66681.0,0.074987]
[1729030616309,0.00225009,66683.0,66681.0,0.17]
[1729030616509,0.00225009,66683.0,66682.0,0.074986]
[1729030616510,0.01325009,66683.0,66682.0,0.074986]
[1729030619017,0.00225009,66683.0,66682.0,0.074986]
[1729030619318,0.00625009,66683.0,66682.0,0.074986]
[1729030619718,0.01125009,66683.0,66682.0,0.074986]
[1729030621416,0.08623509,66683.0,66682.0,0.074986]
[1729030621913,0.08623509,66683.0,66682.0,0.244986]
[1729030622719,0.083985,66683.0,66682.0,0.244986]
[1729030623806,0.083985,66683.0,66682.0,0.236986]
[1729030624116,0.19573413,66683.0,66682.0,0.236986]
[1729030624718,0.12074913,66683.0,66682.0,0.236986]
[1729030625219,0.07470739,66683.0,66682.0,0.236986]
[1729030625941,0.07470739,66683.0,66682.0,0.066986]
[1729030627746,0.14969239,66683.0,66682.0,0.066986]
[1729030629247,0.1957311,66683.0,66682.0,0.066986]
[1729030630341,0.33019793,66683.0,66682.0,0.066986]
[1729030631242,0.17244091,66683.0,66682.0,0.066986]
[1729030631440,0.03797408,66683.0,66682.0,0.066986]
[1729030634048,0.03797421,66683.0,66682.0,0.066986]
[1729030634246,0.11295921,66683.0,66682.0,0.066986]
[1729030637034,0.03797421,66683.0,66682.0,0.066986]
[1729030637236,0.03797288,66683.0,66682.0,1.116866]
[1729030637543,0.009,66683.0,66682.0,1.220266]
[1729030638542,0.0338,66696.0,66695.0,0.074971]
[1729030638772,0.17446789,66696.0,66695.0,0.244971]
[1729030639138,0.17446789,66696.0,66695.0,0.236971]
[1729030639339,0.19932453,66696.0,66695.0,0.236971]
[1729030639840,0.21032453,66696.0,66695.0,0.236971]
[1729030640649,0.28529453,66696.0,66695.0,0.236971]
[1729030640846,0.29629453,66696.0,66695.0,0.236971]
[1729030641749,0.16753294,66696.0,66695.0,0.236971]
[1729030642139,0.22045771,66696.0,66695.0,0.236971]
[1729030642450,0.16753294,66696.0,66695.0,0.236971]
[1729030642639,0.16753294,66696.0,66695.0,0.24386787]
[1729030643038,0.3032421,66696.0,66695.0,0.24386787]
[1729030643243,0.33221277,66696.0,66695.0,0.24386787]
[1729030643447,0.22132453,66696.0,66695.0,0.24386787]
[1729030643643,0.16753294,66696.0,66695.0,0.24386787]
[1729030644143,0.24250294,66696.0,66695.0,0.24386787]
[1729030644845,0.24250294,66696.0,66695.0,0.07386787]
[1729030645348,0.23150294,66696.0,66695.0,0.07886787]
[1729030645646,0.23150294,66696.0,66695.0,0.24886787]
[1729030645851,0.22050294,66696.0,66695.0,0.24886787]
[1729030646052,0.22150294,66696.0,66695.0,0.25586787]
[1729030647048,0.35634216,66696.0,66695.0,0.25586787]
[1729030647255,0.35634216,66696.0,66695.0,0.248971]
[1729030647455,0.22150294,66696.0,66695.0,0.248971]
[1729030647653,0.35634216,66696.0,66695.0,0.248971]
[1729030648156,0.17546789,66696.0,66695.0,0.248971]
[1729030650050,0.51062136,66707.0,66695.0,0.418971]
[1729030650255,0.074954,66711.0,66703.0,0.074962]
[1729030650256,0.11172111,66704.0,66703.0,0.074962]
[1729030650444,0.02896856,66704.0,66703.0,0.244962]
[1729030650757,0.47872856,66704.0,66695.0,0.012]
[1729030650945,0.47872856,66704.0,66695.0,0.086971]
[1729030650946,0.07497,66696.0,66695.0,0.086971]
[1729030651257,0.143162,66703.0,66695.0,0.086971]
[1729030651258,0.074968,66700.0,66699.0,0.074965]
[1729030651451,0.143163,66703.0,66702.0,0.074964]
[1729030651763,0.109663,66703.0,66702.0,0.074964]
[1729030653355,0.20967418,66709.0,66708.0,0.074957]
[1729030653548,0.25569931,66709.0,66708.0,0.074957]
[1729030653951,0.61649931,66709.0,66708.0,0.074957]
[1729030654171,0.48178113,66709.0,66708.0,0.074957]
[1729030654357,0.53556375,66709.0,66708.0,0.074957]
[1729030654652,0.53556375,66709.0,66708.0,0.066957]
[1729030655444,0.48178113,66709.0,66708.0,0.066957]
[1729030656058,0.48378113,66709.0,66708.0,0.066957]
[1729030656642,0.12298113,66709.0,66708.0,0.236957]
[1729030657247,0.04802513,66709.0,66708.0,0.236957]
[1729030658042,0.002,66709.0,66708.0,0.236957]
[1729030658256,0.08774318,66709.0,66708.0,0.236957]
[1729030658756,0.29728336,66709.0,66708.0,0.236957]
[1729030658955,0.11667405,66709.0,66708.0,0.236957]
[1729030659264,0.11667405,66709.0,66708.0,0.066957]
[1729030660154,0.14563856,66709.0,66708.0,0.066957]
[1729030661248,0.10892051,66709.0,66708.0,0.066957]
[1729030662658,0.10892075,66709.0,66708.0,0.066957]
[1729030663854,0.10892075,66709.0,66706.0,0.0068393]
[1729030663855,0.074958,66707.0,66706.0,0.0068393]
[1729030664056,0.074958,66707.0,66704.0,0.07496]
[1729030664057,0.07496,66705.0,66704.0,0.07496]
[1729030664259,0.10392475,66705.0,66704.0,0.07496]
[1729030665867,0.10392475,66705.0,66704.0,0.07596]
[1729030666365,0.10392475,66705.0,66704.0,0.07796]
[1729030666956,0.46472475,66705.0,66704.0,0.07796]
[1729030667961,0.43576,66705.0,66704.0,0.07796]
[1729030670060,0.43576,66705.0,66704.0,0.06996]
[1729030671454,0.02896594,66705.0,66704.0,0.06996]
[1729030671654,0.0334,66721.0,66717.0,0.074944]
[1729030671863,0.0334,66721.0,66720.0,0.244943]
[1729030671864,0.07011567,66721.0,66720.0,0.244943]
[1729030672067,0.06236156,66721.0,66720.0,0.244943]
[1729030672268,0.09907723,66721.0,66720.0,0.244943]
[1729030672457,0.09907723,66721.0,66720.0,0.074943]
[1729030672760,0.09907723,66721.0,66711.0,0.435751]
[1729030672761,0.074952,66712.0,66711.0,0.435751]
[1729030672955,0.074952,66712.0,66711.0,0.074951]
[1729030672956,0.10391356,66712.0,66711.0,0.074951]
[1729030673155,0.50143158,66712.0,66711.0,0.074951]
[1729030674368,0.50543158,66712.0,66711.0,0.074951]
[1729030675069,0.43347958,66712.0,66711.0,0.074951]
[1729030675257,0.50843158,66712.0,66711.0,0.074951]
[1729030676367,0.55445497,66712.0,66711.0,0.074951]
[1729030676759,0.19365658,66712.0,66711.0,0.074951]
[1729030677568,0.11870458,66712.0,66711.0,0.074951]
[1729030678265,0.1567115,66712.0,66711.0,0.074951]
[1729030679065,0.26841608,66712.0,66711.0,0.074951]
[1729030679268,0.11870458,66712.0,66711.0,0.074951]
[1729030680257,0.1567115,66712.0,66711.0,0.074951]
[1729030680460,0.11870458,66712.0,66711.0,0.074951]
[1729030680662,0.11870458,66712.0,66711.0,0.743051]
[1729030680896,0.06567008,66712.0,66711.0,0.743051]
[1729030681573,0.1347781,66720.0,66711.0,0.143051]
[1729030681785,0.1347781,66720.0,66719.0,0.074944]
[1729030682462,0.18079393,66720.0,66719.0,0.074944]
[1729030682770,0.19079393,66720.0,66719.0,0.074944]
[1729030682966,0.19679393,66720.0,66719.0,0.075944]
[1729030683170,0.06201583,66720.0,66719.0,0.075944]
[1729030683473,0.06201583,66720.0,66719.0,0.076944]
[1729030684574,0.016,66720.0,66719.0,0.076944]
[1729030684970,0.006,66720.0,66719.0,0.083944]
[1729030685371,0.006,66720.0,66719.0,0.075944]
[1729030685558,0.006,66720.0,66719.0,0.08306054]
[1729030685766,0.074939,66724.0,66723.0,0.07494]
[1729030686766,0.074939,66724.0,66723.0,0.24694]
[1729030686969,0.0339,66726.0,66723.0,0.172]
[1729030687263,0.0339,66726.0,66725.0,0.074938]
[1729030687463,0.108837,66726.0,66725.0,0.074938]
[1729030687674,0.0339,66726.0,66725.0,0.074938]
[1729030688673,0.0339,66726.0,66725.0,0.075938]
[1729030689281,0.07061026,66726.0,66725.0,0.075938]
[1729030689783,0.14554726,66726.0,66725.0,0.075938]
[1729030690279,0.07061026,66726.0,66725.0,0.075938]
[1729030690482,0.03671026,66726.0,66725.0,0.075938]
[1729030690776,0.06566766,66726.0,66725.0,0.075938]
[1729030691468,0.16544809,66726.0,66725.0,0.075938]
[1729030691983,0.29870369,66727.0,66726.0,0.074937]
[1729030692193,0.18661643,66727.0,66726.0,0.05592859]
[1729030692779,0.54741643,66727.0,66726.0,0.05592859]
[1729030692978,0.60118312,66727.0,66726.0,0.05592859]
[1729030693469,0.24038312,66727.0,66726.0,0.05592859]
[1729030693675,0.18661643,66727.0,66726.0,0.05592859]
[1729030694681,0.18661937,66727.0,66726.0,0.05592859]
[1729030695980,0.54741937,66727.0,66726.0,0.05592859]
[1729030696286,0.60118606,66727.0,66726.0,0.05592859]
[1729030696578,0.24038606,66727.0,66726.0,0.05592859]
[1729030696882,0.074943,66721.0,66720.0,0.074943]
[1729030697083,0.074946,66720.0,66719.0,0.074943]
[1729030697381,0.17290355,66720.0,66719.0,0.074943]
[1729030697584,0.25563032,66720.0,66719.0,0.074943]
[1729030698089,0.074946,66718.0,66717.0,0.00684223]
[1729030698271,0.08272772,66718.0,66716.0,0.074948]
[1729030698597,0.08272772,66718.0,66703.0,0.36156]
[1729030698598,0.87614814,66717.0,66703.0,0.36156]
[1729030698773,0.17,66704.0,66697.0,0.00224861]
[1729030698975,0.17,66704.0,66695.0,0.3608]
[1729030698976,0.3608,66701.0,66695.0,0.3608]
[1729030699172,0.07497,66696.0,66695.0,0.435771]
[1729030699382,0.14996679,66696.0,66695.0,0.3608]
[1729030699690,0.10393916,66696.0,66695.0,0.3608]
[1729030700687,0.10393916,66696.0,66695.0,0.3528]
[1729030700881,0.10393916,66696.0,66695.0,0.427771]
[1729030701478,0.10493916,66696.0,66695.0,0.427771]
[1729030702085,0.07997,66696.0,66695.0,0.427771]
[1729030704077,0.07997,66696.0,66695.0,0.074971]
[1729030705591,0.005,66696.0,66695.0,0.074971]
[1729030705979,0.005,66696.0,66695.0,0.244971]
[1729030710987,0.005,66696.0,66695.0,0.074971]
[1729030711893,0.005,66696.0,66695.0,0.244971]
[1729030716187,0.005,66696.0,66695.0,0.236971]
[1729030716391,0.005,66696.0,66695.0,0.066971]
[1729030716686,0.074974,66693.0,66692.0,0.074974]
[1729030716889,0.10394295,66693.0,66692.0,0.074974]
[1729030718000,0.10394295,66693.0,66690.0,0.0070301]
[1729030718001,0.074975,66692.0,66690.0,0.0820061]
[1729030718197,0.02897138,66691.0,66690.0,0.0820061]
[1729030718397,0.06117138,66691.0,66690.0,0.0820061]
[1729030718803,0.02897138,66691.0,66690.0,0.2520061]
[1729030719096,0.001,66693.0,66692.0,0.074975]
[1729030719309,0.02997032,66693.0,66692.0,0.074975]
[1729030719898,0.02897032,66693.0,66692.0,0.074975]
[1729030721505,0.10494432,66693.0,66692.0,0.076975]
[1729030721803,0.001,66693.0,66692.0,0.076975]
[1729030722693,0.075974,66693.0,66692.0,0.076975]
[1729030727499,0.10494579,66693.0,66692.0,0.002]
[1729030727700,0.074981,66687.0,66686.0,0.074981]
[1729030728491,0.10395403,66687.0,66686.0,0.074981]
[1729030728696,0.18672295,66687.0,66686.0,0.074981]
[1729030728892,0.18672295,66687.0,66686.0,0.079981]
[1729030730202,0.18772295,66687.0,66686.0,0.088981]
[1729030730401,0.11274195,66687.0,66686.0,0.088981]
[1729030731305,0.13589566,66687.0,66686.0,0.088981]
[1729030731604,0.21090745,66687.0,66686.0,0.080981]
[1729030731809,0.24763761,66687.0,66686.0,0.080981]
[1729030732506,0.11274195,66687.0,66686.0,0.080981]
[1729030733017,0.24763761,66687.0,66686.0,0.080981]
[1729030733308,0.11274195,66687.0,66686.0,0.080981]
[1729030734507,0.11274195,66687.0,66686.0,0.250981]
[1729030734706,0.06670319,66687.0,66686.0,0.250981]
[1729030735307,0.02997303,66687.0,66686.0,0.250981]
[1729030735612,0.13482041,66696.0,66690.0,0.074977]
[1729030735811,0.13482041,66696.0,66695.0,0.244971]
[1729030736105,0.18085131,66696.0,66695.0,0.244971]
[1729030736810,0.07496,66706.0,66705.0,0.07496]
[1729030737902,0.07496,66706.0,66705.0,0.07796]
[1729030738503,0.07496,66706.0,66705.0,0.07996]
[1729030739203,0.07496,66706.0,66705.0,0.07796]
[1729030739404,0.07496,66706.0,66705.0,0.08196]
[1729030739710,0.0333,66708.0,66707.0,0.074958]
[1729030740014,0.0342,66711.0,66710.0,0.074955]
[1729030740709,0.00224902,66715.0,66714.0,0.07495]
[1729030740898,0.00224902,66715.0,66714.0,0.24495]
[1729030741409,2e-08,66715.0,66714.0,1.30147273]
[1729030741602,0.0351,66728.0,66727.0,0.074935]
[1729030743598,0.08111285,66728.0,66727.0,0.074935]
[1729030743801,0.11782234,66728.0,66727.0,0.074935]
[1729030744302,0.08272234,66728.0,66727.0,0.074935]
[1729030744501,0.2875652,66728.0,66727.0,0.074935]
[1729030744708,0.22103216,66728.0,66727.0,0.109335]
[1729030744909,0.08672234,66728.0,66727.0,0.109335]
[1729030745213,0.13419946,66732.0,66728.0,0.4496]
[1729030745401,0.3608,66751.0,66728.0,0.4496]
[1729030745402,0.14925538,66746.0,66740.0,0.074921]
[1729030745604,0.14925538,66747.0,66745.0,0.17]
[1729030745803,0.02894778,66746.0,66745.0,0.244915]
[1729030746099,0.02894778,66746.0,66745.0,0.074915]
[1729030746100,0.10386178,66746.0,66745.0,0.074915]
[1729030746308,0.02894778,66746.0,66745.0,0.074915]
[1729030746510,0.02894778,66746.0,66745.0,0.244915]
[1729030746900,0.03194778,66746.0,66745.0,0.236915]
[1729030747611,0.02994778,66746.0,66745.0,0.236915]
[1729030747807,0.02994778,66746.0,66745.0,0.237915]
[1729030749115,0.02894778,66746.0,66745.0,0.237915]
[1729030749300,0.02894778,66746.0,66745.0,0.242915]
[1729030749499,0.0345,66750.0,66749.0,0.074911]
[1729030749812,0.0345,66750.0,66749.0,0.244911]
[1729030749813,0.06344667,66750.0,66749.0,0.244911]
[1729030750916,0.06644667,66750.0,66749.0,0.245911]
[1729030751808,0.0375,66750.0,66749.0,0.245911]
[1729030752011,0.11241,66750.0,66749.0,0.245911]
[1729030752205,0.11241,66750.0,66749.0,0.075911]
[1729030753512,0.0375,66750.0,66749.0,0.075911]
[1729030753707,0.0375,66750.0,66749.0,0.245911]
[1729030756013,0.0375442,66750.0,66749.0,0.245911]
[1729030757416,0.3608,66784.0,66770.0,0.074887]
[1729030757718,0.0345,66773.0,66772.0,0.074885]
[1729030758925,0.0345,66773.0,66772.0,0.244885]
[1729030759517,0.0395,66773.0,66772.0,0.244885]
[1729030760225,0.005,66773.0,66772.0,0.25175945]
[1729030760721,0.003,66773.0,66769.0,0.3608]
[1729030760912,0.003,66773.0,66765.0,0.074892]
[1729030760913,0.277286,66772.0,66771.0,0.074886]
[1729030761223,0.074902,66757.0,66756.0,0.00224614]
[1729030761914,0.074906,66753.0,66752.0,0.081937]
[1729030762317,0.074906,66753.0,66752.0,0.073937]
[1729030762624,0.074913,66747.0,66746.0,0.074914]
[1729030763627,0.074916,66745.0,66741.0,0.26400291]
[1729030763813,0.0336,66744.0,66741.0,0.26400291]
[1729030764013,0.0336,66744.0,66742.0,0.17]
[1729030764515,0.0336,66744.0,66741.0,0.26400291]
[1729030764714,0.074919,66742.0,66741.0,0.33891991]
[1729030764919,0.0336,66744.0,66738.0,0.00224742]
[1729030764920,0.074922,66739.0,66738.0,0.00224742]
[1729030765728,0.074929,66733.0,66732.0,0.01499]
[1729030765916,0.5308,66742.0,66732.0,0.18499]
[1729030766111,0.074924,66737.0,66736.0,0.17]
[1729030766528,0.53168,66742.0,66734.0,0.074927]
[1729030766722,0.074926,66735.0,66734.0,0.074927]
[1729030766927,0.074929,66733.0,66732.0,0.01499]
[1729030767117,0.17,66733.0,66721.0,0.17]
[1729030767318,0.3608,66734.0,66718.0,0.00224796]
[1729030767319,0.074939,66724.0,66723.0,0.074939]
[1729030767717,0.10389836,66724.0,66723.0,0.074939]
[1729030767917,0.074939,66724.0,66723.0,0.074939]
[1729030768123,0.10389825,66724.0,66723.0,0.074939]
[1729030769023,0.02895925,66724.0,66723.0,0.074939]
[1729030769424,0.0332,66726.0,66725.0,0.074938]
[1729030769727,0.06215758,66726.0,66725.0,0.244938]